[Event "Julius Baer Generation Cup Prelims 2022"]
[Site "Online"]
[Date "2022.09.14"]
[Round "5.2"]
[White "Gelfand, Boris"]
[Black "Ivanchuk, Vasyl"]
[Result "1/2-1/2"]
[ECO "B36"]
[WhiteElo "2668"]
[BlackElo "2678"]
[Annotator "TA"]
[PlyCount "79"]
[EventDate "2022.09.12"]
[EventType "tourn"]
[EventCountry "NET"]
[SourceTitle "playchess.com"]
[Source "ChessBase"]
[SourceQuality "1"]
[TimeControl "900+10"]

{[%evp 21,79,41,45,43,51,28,27,25,26,26,25,25,26,13,22,9,9,9,9,8,17,10,10,0,0,0,0,0,0,0,0,0,0,0,4,0,0,0,0,0,0,0,8,8,8,8,8,8,8,0,8,0,8,8,8,0,8,0,8,0]} 1. Nf3 {[%emt 0:00:00]} c5 {[%emt 0:00:00]} 2. c4 {[%emt 0:00:02]} g6 {[%emt 0:00:01]} 3. e4 {[%emt 0:00:22]} Nc6 {[%emt 0:00:03]} 4. d4 {[%emt 0:00:02]} cxd4 {[%emt 0:00:01]} 5. Nxd4 {[%emt 0:00:01]} Nf6 {[%emt 0:00:01]} 6. Nc3 {[%emt 0:00:01]} d6 {[%emt 0:00:00]} 7. f3 {[%emt 0:00:02]} Nxd4 {[%emt 0:00:06]} 8. Qxd4 {[%emt 0:00:02]} Bg7 {[%emt 0:00:01]} 9. Be3 {[%emt 0:00:02]} O-O {[%emt 0:00:01]} 10. Qd2 {[%emt 0:00:01]} Qa5 {[%emt 0:00:16]} 11. Rc1 {[%emt 0:00:33]} Be6 {[%emt 0:00:03] CPLX 2.4 4 (a7-a6) (=4)} 12. b3 {[%emt 0:02:08] CPLX 2.4 2 (Bf1-e2) (=2). B36: Sicilian: Maroczy Bind: Gurgenidze System.} Rfc8 {[%emt 0:00:03] CPLX 2.4 8 (a7-a6) (=6)} 13. Bd3 {[%emt 0:01:21] CPLX 2.4 23 (g2-g4) (=13)} a6 {[%emt 0:01:26] CPLX 2.5} 14. Nd5 {[%emt 0:02:48] CPLX 2.5 2 (g2-g4) (=9). White has an edge.} Qxd2+ {[%emt 0:00:15] EASY} 15. Kxd2 {[%emt 0:00:01] RECAPT} Nxd5 {[%emt 0:00:09] CPLX 2.4} 16. cxd5 {[%emt 0:00:02] RECAPT} Bd7 {[%emt 0:00:05] EASY} 17. Rxc8+ {[%emt 0:00:08] CPLX 2.1 13 (g2-g4) (=7)} Rxc8 {[%emt 0:00:02] RECAPT. The position is equal.} 18. Rc1 {[%emt 0:00:01] CPLX 2.0 13 (g2-g4) (=8)} Rxc1 {[%emt 0:00:15] CPLX 2.0} 19. Kxc1 $11 {[%emt 0:00:01][%mdl 4096] [#] Endgame KBB-KBB. RECAPT} e6 $146 {[%emt 0:03:17] CPLX 2.0} ({Predecessor:} 19... f5 20. exf5 Bxf5 21. Bxf5 gxf5 22. Kd2 Kf7 23. Kd3 e6 24. dxe6+ Kxe6 25. Kc4 Be5 {½-½ (42) Kast,J (2023)-Golda,H (2346) Forchheim 2015}) 20. dxe6 {[%emt 0:00:51] CPLX 2.0} Bxe6 {[%emt 0:00:02] RECAPT} 21. Kd2 {[%emt 0:00:55] CPLX 2.0 7 (f3-f4) (=6)} Kf8 {[%emt 0:00:01] BESTDEEP} 22. Bc4 {[%emt 0:00:12] CPLX 2.0 10 (f3-f4) (=6)} Bxc4 {[%emt 0:00:41] CPLX 2.0} 23. bxc4 {[%emt 0:00:02] KB-KB. RECAPT} h5 {[%emt 0:00:01] CPLX 2.0} 24. Kd3 {[%emt 0:00:21] CPLX 2.0 0 (a2-a4) (=5)} Ke7 {[%emt 0:00:08] CPLX 2.0} 25. h3 {[%emt 0:00:39] CPLX 2.0 0 (f3-f4) (=5)} Ke6 {[%emt 0:00:03] CPLX 2.0} 26. g4 {[%emt 0:00:01]} hxg4 {[%emt 0:00:02] CPLX 2.0} 27. hxg4 {[%emt 0:00:24] RECAPT} Kd7 {[%emt 0:00:39] CPLX 2.0 4 (Bg7-f6) (=1)} 28. a4 {[%emt 0:00:48] CPLX 2.0 4 (g4-g5) (=5)} Kc6 {[%emt 0:00:08] CPLX 2.0} 29. f4 {[%emt 0:00:37] CPLX 2.0 0 (Kd3-c2) (=4)} Bf6 {[%emt 0:00:11] BESTDEEP} 30. f5 {[%emt 0:00:25]} Bd8 {[%emt 0:00:12]} 31. Bd4 {[%emt 0:00:28]} b5 {[%emt 0:02:11] CPLX 2.0 8 (Bd8-g5) (=1)} 32. axb5+ {[%emt 0:00:12] CPLX 2.1 0 (c4xb5) (=4)} axb5 {[%emt 0:00:01] RECAPT} 33. cxb5+ {[%emt 0:00:10] RECAPT} Kxb5 {[%emt 0:00:01] RECAPT} 34. Bb2 {[%emt 0:00:11] CPLX 2.0 0 (Bd4-e3) (=4)} Kc6 {[%emt 0:00:08] CPLX 2.0} 35. Kc4 {[%emt 0:00:03] CPLX 2.0 8 (Bb2-c1) (=4)} Bg5 {[%emt 0:00:06] CPLX 2.0 8 (g6xf5) (=1)} 36. Bc3 {[%emt 0:00:06] CPLX 2.0 8 (Bb2-a3) (=4)} Bf4 {[%emt 0:00:07] CPLX 2.0 8 (g6xf5) (=2)} 37. Bd4 {[%emt 0:00:02] CPLX 2.0} Bg5 {[%emt 0:00:03] CPLX 2.0 0 (g6xf5) (=2)} 38. Bc3 {[%emt 0:00:02] CPLX 2.0 8 (Bd4-a7) (=4)} Bf4 {[%emt 0:00:01] CPLX 2.0} 39. Bd4 {[%emt 0:00:01] CPLX 2.0 8 (Bc3-f6) (=4)} Bg5 {[%emt 0:00:01] CPLX 2.0} 40. Bc3 {[%emt 0:00:02] Weighted Error Value: White=0.06 (flawless) /Black=0.02 (flawless)} 1/2-1/2

[Event "Julius Baer Generation Cup Prelims 2022"]
[Site "Online"]
[Date "2022.09.14"]
[Round "5.3"]
[White "Yoo, Christopher Woojin"]
[Black "Saric, Ivan"]
[Result "1/2-1/2"]
[ECO "D79"]
[WhiteElo "2563"]
[BlackElo "2668"]
[Annotator "TA"]
[PlyCount "58"]
[EventDate "2022.09.12"]
[EventType "tourn"]
[EventCountry "NET"]
[SourceTitle "playchess.com"]
[Source "ChessBase"]
[SourceQuality "1"]
[TimeControl "900+10"]

{[%evp 15,58,0,5,0,0,0,0,0,0,0,0,0,0,0,0,-3,-2,-17,-13,-11,-10,-13,-15,-19,-32,-31,-20,-38,-49,-79,-86,-91,-85,-64,-66,-25,0,0,0,0,0,0,0,0,0]} 1. d4 {[%emt 0:00:00]} Nf6 {[%emt 0:00:00]} 2. c4 {[%emt 0:00:02]} g6 {[%emt 0:00:22]} 3. Nf3 {[%emt 0:00:04]} Bg7 {[%emt 0:00:01]} 4. g3 {[%emt 0:00:06]} c6 {[%emt 0:00:03]} 5. Bg2 {[%emt 0:00:03]} d5 {[%emt 0:00:10]} 6. cxd5 {[%emt 0:00:46]} cxd5 {[%emt 0:00:00]} 7. O-O {[%emt 0:00:01]} O-O {[%emt 0:00:02]} 8. Ne5 {[%emt 0:00:16]} Nfd7 {[%emt 0:00:45] CPLX 2.1 5 (Nf6-g4) (=5)} 9. Nxd7 {[%emt 0:03:35] CPLX 2.4 5 (Bg2xd5) (=5). D79: Fianchetto Grünfeld: Symmetrical Variation (6 0-0 c6 7 cxd5 cxd5).} Qxd7 {[%emt 0:00:05] RECAPT} 10. Nc3 {[%emt 0:00:05] EASY} e6 {[%emt 0:00:09] BESTDEEP} 11. b3 {[%emt 0:01:34] BESTDEEP} Nc6 {[%emt 0:00:04] CPLX 2.0 0 (b7-b6) (=1)} 12. e3 {[%emt 0:00:03] CPLX 2.0 0 (Bc1-a3) (=1)} b6 {[%emt 0:00:01] CPLX 2.0} 13. Ba3 {[%emt 0:00:11] EASY} Rd8 {[%emt 0:00:05] CPLX 2.4 0 (Nc6-e7) (=1)} 14. Rc1 {[%emt 0:00:39] CPLX 2.1} Ba6 {[%emt 0:00:17] CPLX 2.1} 15. Re1 {[%emt 0:00:02] CPLX 2.6} Rac8 {[%emt 0:00:00] [#] CPLX 2.4 1 (Nc6-e7) (=1)} 16. Bf1 $146 {[%emt 0:00:49] CPLX 2.4 15 (Qd1-d2) (=3)} ({Predecessor:} 16. Qd2 Bf8 17. Bxf8 Kxf8 18. Na4 Kg7 19. Rc2 Ne7 20. Rec1 Rxc2 21. Rxc2 Rc8 22. Bf1 Bxf1 23. Kxf1 {0-1 (37) Hamidi,A (2276)-Kaminski,V (2247) Chess.com INT 2021}) 16... Bxf1 {[%emt 0:00:05] CPLX 2.6} 17. Rxf1 {[%emt 0:00:00] RECAPT} h5 {[%emt 0:00:20] CPLX 2.0 1 (e6-e5) (=1)} 18. Ne2 {[%emt 0:01:55] CPLX 2.1} e5 {[%emt 0:01:04][%cal Be6e5,Be5e4][%mdl 32] CPLX 2.2 0 (Qd7-b7) (=1)} 19. Bb2 {[%emt 0:00:30] CPLX 2.5 4 (d4xe5) (=2)} e4 {[%emt 0:00:59] CPLX 2.2} 20. Ba3 $1 {[%emt 0:00:41] CPLX 2.2} Bh6 {[%emt 0:00:35] CPLX 2.3 11 (h5-h4) (=1)} 21. Nc3 {[%emt 0:02:17] CPLX 2.3 18 (h2-h4) (=3)} h4 {[%emt 0:00:15] Hoping for ...hxg3. BESTDEEP} 22. gxh4 {[%emt 0:00:20] CPLX 2.6 30 (Qd1-e2) (=5)} Qh3 {[%emt 0:00:43] EASY} 23. h5 {[%emt 0:00:07] [#] CPLX 4.0 5 (Qd1-d2) (=5)} Nxd4 $1 {[%emt 0:03:44] MISS-g6xh5 6 (g6xh5) (=2)} 24. Qxd4 {[%emt 0:00:09] aiming for Qe5. RECAPT} Bg7 {[%emt 0:00:08] Inhibits Qe5. EASY} 25. Qd2 {[%emt 0:00:11] BESTDEEP} Qg4+ {[%emt 0:01:38][%mdl 1024] Black has compensation. MISS-Bg7-e5 25 (Bg7-e5) (=3)} 26. Kh1 {[%emt 0:00:03] LEGAL. The position is equal.} Qf3+ {[%emt 0:00:00] EASY} 27. Kg1 {[%emt 0:00:00] LEGAL} Qg4+ {[%emt 0:06:50] EASY} 28. Kh1 {[%emt 0:00:02] [#] Strongly threatening Ne2. LEGAL} Qf3+ {[%emt 0:00:15] EASY} 29. Kg1 {[%emt 0:00:02] And now Ne2 would win. LEGAL} Qg4+ {[%emt 0:00:49] Weighted Error Value: White=0.06 (flawless) /Black=0.04 (flawless)} 1/2-1/2

[Event "Julius Baer Generation Cup Prelims 2022"]
[Site "Online"]
[Date "2022.09.14"]
[Round "5.5"]
[White "Keymer, Vincent"]
[Black "Aronian, Levon"]
[Result "1-0"]
[ECO "D32"]
[WhiteElo "2693"]
[BlackElo "2759"]
[Annotator "TA"]
[PlyCount "133"]
[EventDate "2022.09.12"]
[EventType "tourn"]
[EventCountry "NET"]
[SourceTitle "playchess.com"]
[Source "ChessBase"]
[SourceQuality "1"]
[TimeControl "900+10"]

{[%evp 22,133,22,22,26,19,37,54,29,50,45,20,62,24,21,27,22,22,58,35,35,35,34,33,33,35,51,25,58,15,20,14,30,30,30,30,30,30,65,65,79,68,80,81,81,62,99,99,140,81,77,77,81,81,74,67,107,107,261,242,282,278,422,415,408,334,608,569,904,851,810,553,440,28,28,28,47,15,108,15,15,15,15,0,0,8,1519,1343,29949,29949,29957,29957,29944,0,0,0,5858,5440,1075,8,1057,0,1043,708,657,595,29967,29969,29974,29964,29974,29975,29972,29951]} 1. Nf3 {[%emt 0:00:00]} d5 {[%emt 0:00:00]} 2. e3 {[%emt 0:00:02]} Nf6 {[%emt 0:00:02]} 3. c4 {[%emt 0:00:01]} e6 {[%emt 0:00:01]} 4. b3 {[%emt 0:00:04]} Bd6 {[%emt 0:00:08]} 5. Bb2 {[%emt 0:00:03]} O-O {[%emt 0:00:02]} 6. Nc3 {[%emt 0:00:18]} c5 {[%emt 0:00:01]} 7. cxd5 {[%emt 0:00:02]} exd5 {[%emt 0:00:04]} 8. d4 {[%emt 0:00:01]} cxd4 {[%emt 0:00:25]} 9. Nxd4 {[%emt 0:00:02]} Nc6 {[%emt 0:00:02]} 10. Be2 {[%emt 0:00:01]} Re8 {[%emt 0:00:19]} 11. O-O {[%emt 0:00:19]} Nxd4 {[%emt 0:00:02]} 12. Qxd4 {[%emt 0:00:00]} Be5 {[%emt 0:00:01] D32: Tarrasch Defence: Sidelines and lines without g3.} 13. Qd2 {[%emt 0:00:02]} Bg4 {[%emt 0:00:19]} 14. Bxg4 {[%emt 0:04:54]} Nxg4 {[%emt 0:00:03] White is slightly better.} 15. h3 {[%emt 0:00:03]} Nf6 {[%emt 0:00:02]} 16. Rfd1 {[%emt 0:00:28] [#]} Qa5 $146 {[%emt 0:01:38]} ({Predecessor:} 16... Rc8 17. Qd3 Qa5 18. Rac1 Rc6 19. a3 Qd8 20. Rb1 Kh8 21. Ne2 Bxb2 22. Rxb2 Qc7 {1-0 (65) Sassler,A (2480)-Bubir,A (2516) LSS email 2013}) 17. Rac1 {[%emt 0:01:17]} Rad8 {[%emt 0:00:03]} 18. Na4 {[%emt 0:00:45]} Qxd2 {[%emt 0:00:15]} 19. Rxd2 {[%emt 0:00:00]} Ne4 {[%emt 0:00:30]} 20. Rdd1 {[%emt 0:00:10]} (20. Rd3 $5 {[%cal Rb2e5]}) 20... Bxb2 {[%emt 0:06:04]} 21. Nxb2 {[%emt 0:00:00]} Kf8 {[%emt 0:00:01]} 22. Rc7 {[%emt 0:03:15]} Re7 {[%emt 0:00:03]} 23. Rc2 {[%emt 0:01:19]} Ree8 {[%emt 0:00:45]} 24. Na4 {[%emt 0:01:32]} b6 {[%emt 0:00:21]} 25. Nc3 {[%emt 0:01:29]} (25. f3 $5 {[%cal Rf3e4]} Nf6 26. Kf2 $14) 25... Rc8 {[%emt 0:00:56]} 26. Rdc1 {[%emt 0:00:02]} Rc5 {[%emt 0:00:04] Threatens to win with ...Rec8.} 27. Nxe4 {[%emt 0:00:44]} Rxc2 {[%emt 0:00:01]} 28. Rxc2 {[%emt 0:00:00]} dxe4 $11 {[%emt 0:00:01][%mdl 4096] Endgame KR-KR} 29. h4 {[%emt 0:00:01]} h5 {[%emt 0:00:21]} 30. Kh2 {[%emt 0:00:09]} g6 {[%emt 0:03:29]} 31. b4 {[%emt 0:01:49]} Re6 {[%emt 0:00:23]} 32. Rc8+ {[%emt 0:00:18]} Kg7 {[%emt 0:00:05]} 33. b5 {[%emt 0:00:10]} Re5 {[%emt 0:03:09]} 34. a4 {[%emt 0:00:03]} Rf5 {[%emt 0:00:16]} 35. Kg3 {[%emt 0:00:35]} ({Better is} 35. Kg1 $1) 35... g5 $16 {[%emt 0:00:03]} 36. hxg5 $1 {[%emt 0:00:36]} Rxg5+ {[%emt 0:00:01]} 37. Kh2 $1 {[%emt 0:00:01]} Rf5 {[%emt 0:00:01] [#]} 38. Kg1 $1 {[%emt 0:00:01]} Rd5 {[%emt 0:00:15]} 39. Rc7 {[%emt 0:00:26] Inhibits Rd7.} Rd1+ {[%emt 0:00:09]} (39... a6 $16 {keeps fighting.}) 40. Kh2 $18 {[%emt 0:00:01]} Rd2 {[%emt 0:00:01]} 41. Kg3 {[%emt 0:00:32]} (41. Rxa7 Rxf2 42. Ra6 Ra2 $16) 41... Kg6 {[%emt 0:00:47]} (41... h4+ $142 42. Kxh4 Rxf2) 42. Rxa7 {[%emt 0:00:03] Strongly threatening Ra6.} Ra2 {[%emt 0:00:18]} 43. Ra6 {[%emt 0:00:24] a5 is the strong threat.} Kg5 $2 {[%emt 0:00:03]} (43... Kf5 44. Rxb6 Rxa4) 44. Rxb6 {[%emt 0:00:15] Hoping for Ra6.} h4+ {[%emt 0:00:01]} 45. Kh3 {[%emt 0:00:06]} Rxa4 {[%emt 0:00:02]} 46. Rb7 {[%emt 0:00:03]} Ra1 {[%emt 0:00:07][%cal Ra1h1]} 47. f4+ $2 {[%emt 0:00:19]} (47. Kh2 $18) 47... exf3 $1 $11 {[%emt 0:00:17]} 48. gxf3 {[%emt 0:00:00]} Ra3 {[%emt 0:00:03]} 49. f4+ {[%emt 0:00:23]} (49. Re7 $5 {[%cal Rf3f4]}) 49... Kg6 {[%emt 0:00:12]} (49... Kh5 $1 $11) 50. Re7 {[%emt 0:00:11]} (50. Kxh4 $16 Rxe3 51. Kg4) 50... Rb3 {[%emt 0:00:06]} 51. Re5 {[%emt 0:00:08]} f6 {[%emt 0:00:01]} 52. Rc5 {[%emt 0:00:01]} Rxe3+ {[%emt 0:00:02]} 53. Kxh4 {[%emt 0:00:01] aiming for f5+.} Kf7 $2 {[%emt 0:00:22][%mdl 8192]} (53... Re1 $11) 54. Kg4 $18 {[%emt 0:00:10]} Kg6 {[%emt 0:00:15]} 55. f5+ {[%emt 0:00:13]} Kh6 {[%emt 0:00:10]} 56. Kf4 {[%emt 0:00:19]} Re1 {[%emt 0:00:09]} 57. Rc3 $2 {[%emt 0:00:18]} (57. Rc6 {mates} Rf1+ 58. Ke4 Kg5 59. Rc5 (59. b6 Rd1 $16) 59... Kg4 60. Rd5 (60. b6 Rb1 $16) 60... Rc1 61. Kd4 Kh3 62. Rc5) 57... Rb1 $11 {[%emt 0:00:14]} 58. Rc5 $2 {[%emt 0:00:01][%mdl 8192]} (58. Rh3+ $11 Kg7 59. Rh2 (59. Rg3+ Kf7 $11)) 58... Re1 $1 $18 {[%emt 0:00:09]} 59. Rc6 {[%emt 0:00:08]} Rf1+ {[%emt 0:00:05]} 60. Kg4 $2 {[%emt 0:00:08]} (60. Ke4 $18 Kg5 61. Rc5 (61. b6 Rb1 $16)) 60... Rg1+ $2 {[%emt 0:00:05][%mdl 8192]} (60... Kg7 $11) 61. Kf4 {[%emt 0:00:01]} Rf1+ {[%emt 0:00:01]} 62. Ke4 {[%emt 0:00:01]} Kg5 {[%emt 0:00:01]} 63. Rc5 {[%emt 0:00:00] White wants to mate with Rd5.} ({Weaker is} 63. b6 Rb1 64. Rd6 Rb5 $16) 63... Rd1 {[%emt 0:00:30] [#]} 64. Rd5 $1 {[%emt 0:00:07] White mates.} ({Not} 64. b6 Rb1 $16) 64... Rb1 {[%emt 0:00:20]} 65. Kd4 {[%emt 0:00:01]} Kf4 {[%emt 0:00:01]} 66. Kc5 {[%emt 0:00:01]} Ke4 {[%emt 0:00:34]} 67. Kc6 {[%emt 0:00:07] Weighted Error Value: White=0.49/Black=0.45} 1-0

[Event "Julius Baer Generation Cup Prelims 2022"]
[Site "Online"]
[Date "2022.09.14"]
[Round "5.6"]
[White "Erigaisi Arjun"]
[Black "Niemann, Hans Moke"]
[Result "1-0"]
[ECO "E11"]
[WhiteElo "2725"]
[BlackElo "2688"]
[Annotator "TA"]
[PlyCount "99"]
[EventDate "2022.09.12"]
[EventType "tourn"]
[EventCountry "NET"]
[SourceTitle "playchess.com"]
[Source "ChessBase"]
[SourceQuality "1"]
[TimeControl "900+10"]

{[%evp 13,99,0,3,2,0,-14,-3,-2,-4,-1,-4,0,9,24,215,215,213,213,213,213,214,220,213,206,197,196,236,201,202,199,202,205,204,214,212,208,202,197,264,255,260,210,241,220,207,177,177,122,187,187,308,213,195,190,174,161,233,216,258,272,244,229,573,568,579,572,571,569,553,543,661,661,640,637,712,691,933,922,7125,800,6211,6602,6199,6003,5816,4898,1326,1326]} 1. d4 {[%emt 0:00:00]} Nf6 {[%emt 0:00:00]} 2. c4 {[%emt 0:00:02]} e6 {[%emt 0:00:03]} 3. g3 {[%emt 0:00:03]} Bb4+ {[%emt 0:00:09]} 4. Bd2 {[%emt 0:00:02]} Be7 {[%emt 0:00:02]} 5. Bg2 {[%emt 0:00:01]} d5 {[%emt 0:00:01]} 6. Nf3 {[%emt 0:00:02]} O-O {[%emt 0:00:01]} 7. O-O {[%emt 0:00:01]} Nbd7 {[%emt 0:00:00] CPLX 2.1} 8. c5 {[%emt 0:00:03] CPLX 2.1. E11: Bogo-Indian.} Ne4 {[%emt 0:00:04] CPLX 2.0} 9. Nc3 {[%emt 0:00:04] CPLX 2.2 14 (Bd2-e3) (=7)} f5 {[%emt 0:00:01] CPLX 2.5} 10. b4 {[%emt 0:00:04][%cal Bb2b4,Bb4b5][%mdl 32] BESTDEEP. The position is equal.} c6 {[%emt 0:00:06] [#] CPLX 2.6} 11. b5 $5 $146 {[%emt 0:00:05][%mdl 8] BESTDEEP New and interesting.} ({Predecessor:} 11. Qc2 Bf6 12. Rad1 e5 13. dxe5 Nxe5 14. Nxe5 Bxe5 15. Be1 Qf6 16. Rd3 Qe7 17. f3 Nxc3 18. Bxc3 {½-½ (35) Toivonen,A (2243)-Ivanov,S (2325) Petrozavodsk 2007}) 11... Bf6 {[%emt 0:00:29][%cal Od7c5] BESTDEEP} 12. Rc1 {[%emt 0:01:58] BESTDEEP} Nxd2 {[%emt 0:01:23] CPLX 2.8 9 (Ne4xc3) (=2)} (12... a6 {is more complex.} 13. bxc6 bxc6 14. Qa4 Nxd2 15. Nxd2 Qc7) 13. Qxd2 {[%emt 0:00:03] RECAPT} Qa5 $2 {[%emt 0:01:18] [#] RELBLUND 191 (g7-g5) (=29)} (13... g5 $11) 14. bxc6 $1 $18 {[%emt 0:00:17] DEEPSTRONG=>BLUNDERREACT} bxc6 {[%emt 0:00:06] [#] RECAPT} 15. Nxd5 {[%emt 0:00:03][%mdl 512] EASY} Qxd2 {[%emt 0:00:07] CPLX 3.5} 16. Nxf6+ {[%emt 0:00:01] EASY} Nxf6 {[%emt 0:00:01] RECAPT} 17. Nxd2 {[%emt 0:00:00][%cal Bf3d2,Bd2e4,Be4d6][%mdl 32] EASY} Nd5 {[%emt 0:00:01] CPLX 2.0} 18. e4 {[%emt 0:02:19] CPLX 2.0 7 (Rf1-e1) (=2)} fxe4 {[%emt 0:00:04] EASY} 19. Nxe4 {[%emt 0:00:00] RECAPT} Ba6 {[%emt 0:00:06] CPLX 2.1 40 (Ra8-b8) (=18)} 20. Rfd1 {[%emt 0:00:15] CPLX 2.4 35 (Rf1-e1) (=4)} Rab8 {[%emt 0:00:39] CPLX 2.2} 21. Rd2 {[%emt 0:00:05] Prevents Rb2. BESTDEEP} h6 {[%emt 0:00:32] CPLX 2.4 3 (Rb8-b4) (=16)} 22. h4 {[%emt 0:00:03] BESTDEEP} Rb4 {[%emt 0:00:31] CPLX 2.4} 23. Nd6 {[%emt 0:01:18] CPLX 2.5} Rfb8 {[%emt 0:00:04] CPLX 2.7} 24. Bh3 {[%emt 0:00:18] CPLX 2.6} Nc7 {[%emt 0:00:05] CPLX 2.6} 25. Rc3 {[%emt 0:00:03] BESTDEEP} Rb1+ {[%emt 0:00:15] CPLX 2.4 67 (Rb4-a4) (=16)} (25... Ra4 $142 26. Re3 Rb1+ 27. Kh2 Ra1) 26. Kh2 {[%emt 0:00:43] CPLX 2.5} Bf1 {[%emt 0:00:53] CPLX 2.5 5 (Rb1-b2) (=16)} 27. Bg4 {[%emt 0:00:31] CPLX 2.7 50 (Bh3xf1) (=5)} R8b2 {[%emt 0:00:13] CPLX 2.4 31 (g7-g5) (=16)} 28. Rxb2 {[%emt 0:00:39] CPLX 2.8} Rxb2 {[%emt 0:00:01] RECAPT} 29. Ra3 {[%emt 0:00:17] CPLX 2.4 30 (Rc3-b3) (=6)} a6 {[%emt 0:00:31] BESTDEEP} 30. Kg1 {[%emt 0:01:04] CPLX 2.4 55 (Ra3-b3) (=8)} (30. Rb3 $18 Rxb3 31. axb3) 30... Rb1 {[%emt 0:00:01] CPLX 2.5 65 (Bf1-b5) (=17)} (30... Bb5 $16 31. Bh3 Rd2) 31. Rb3 {[%emt 0:00:35] CPLX 2.4} Ra1 {[%emt 0:01:11] CPLX 2.7 121 (Rb1xb3) (=21)} (31... Rxb3 $142 32. axb3 Bd3) 32. Kh2 {[%emt 0:00:28] Rb7 is the strong threat. MISS-Rb3-b8 95 (Rb3-b8) (=11)} Bb5 {[%emt 0:00:58] DEEPSTRONG} 33. Ra3 {[%emt 0:01:17] CPLX 2.4 5 (a2-a3) (=11)} Rb1 {[%emt 0:00:51] CPLX 2.4 0 (g7-g6) (=20)} 34. Bh3 {[%emt 0:00:59] CPLX 2.4 13 (Ra3-e3) (=11)} Bf1 {[%emt 0:02:10] CPLX 2.3 72 (Bb5-e2) (=22)} (34... Be2 {was worth a try.} 35. Re3 Rb2) 35. Nc8 {[%emt 0:00:06] BESTDEEP} Bxh3 {[%emt 0:01:19] CPLX 2.2 42 (Bf1-b5) (=22)} 36. Kxh3 {[%emt 0:00:00][%mdl 4096] Endgame KRN-KRN. RECAPT} Nb5 {[%emt 0:00:07] EASY} 37. Rd3 {[%emt 0:01:20] MISS-Ra3xa6 15 (Ra3xa6) (=11)} Kf7 $2 {[%emt 0:01:25] CPLX 2.0 344 (Rb1-a1) (=32)} (37... Ra1 {is more resistant.} 38. Ne7+ Kf7 39. Nxc6 Rxa2) 38. a4 {[%emt 0:00:08] CPLX 2.1=>BLUNDERREACT. White is clearly winning.} Nc7 {[%emt 0:00:01] CPLX 2.3} 39. Rf3+ {[%emt 0:00:23] CPLX 2.0} Kg8 {[%emt 0:00:10] BESTDEEP} 40. Ne7+ {[%emt 0:00:03] EASY} Kh7 {[%emt 0:00:01] CPLX 2.0} 41. Nxc6 {[%emt 0:00:15] CPLX 2.0} Ra1 {[%emt 0:00:01] CPLX 2.1 118 (Nc7-d5) (=32)} 42. Rf7 {[%emt 0:00:13] CPLX 2.1} Nd5 {[%emt 0:00:06] EASY} 43. Nd8 {[%emt 0:00:03] CPLX 2.3} Kg8 {[%emt 0:00:33] EVAL 75 (Ra1-h1) (=32)} 44. Ra7 {[%emt 0:00:02] CPLX 2.4} Ra2 {[%emt 0:00:24] EVAL 242 (Ra1-e1) (=38)} 45. Nxe6 {[%emt 0:00:06] EVAL} Rxf2 {[%emt 0:00:01] BEVAL 400 (Kg8-h8) (=47)} 46. Rxg7+ {[%emt 0:00:14] EVAL} Kh8 {[%emt 0:00:02] BEVAL} 47. Rd7 {[%emt 0:00:26] BEVAL} Ne3 {[%emt 0:00:03] BEVAL} 48. c6 {[%emt 0:00:54] White wants to mate with c7. BEVAL} Rf1 {[%emt 0:00:04] BEVAL 0 (Rf2-c2) (=43)} 49. g4 {[%emt 0:00:02] Threatening mate with c7.} Rf3+ {[%emt 0:00:13]} 50. Kh2 {[%emt 0:00:01] Weighted Error Value: White=0.10 (very precise) /Black=0.36} 1-0